Cogmind - Beta 15 @@@ ROGUE MODE // 2025.08.11 @ 11:43:10 Player: Tuja Result: Destroyed by L-31 Rogue with Katana Performance ------------- Evolutions (2) 1000 Regions Visited (6) 1200 Robots Destroyed (48) 240 Value Destroyed (1601) 1601 Prototype IDs (0) 0 Alien Tech Used (0) 0 Bonus (200) 200 TOTAL SCORE: 4241 Bonus ------- Entered Garrisons 200 Cogmind --------- Core Integrity 0/550 Matter 216/300 Energy 158/160 System Corruption 5% Temperature Cool (0) Movement Walking (260) Ox2 Location -8/Materials Parts ------- > --- POWER (1) -------- Light Nuclear Core > --- PROPULSION (3) --- Aluminum Leg > --- UTILITY (5) ------ Improved Heat Sink Small Storage Unit Advanced Targeting Computer Target Analyzer Hacking Suite > --- WEAPON (2) ------- Advanced Assault Cannon Advanced Assault Cannon > --- INVENTORY (8) ---- Particle Gun Improved Datajack Heavy Flail Powered Hammer Powered Hammer Powered Hammer Peak State ------------ > --- POWER ------------ Light Nuclear Core > --- PROPULSION ------- Aluminum Leg Aluminum Leg > --- UTILITY ---------- Improved Heat Sink Small Storage Unit Advanced Targeting Computer Target Analyzer Hacking Suite > --- WEAPON ----------- Advanced Assault Cannon Advanced Assault Cannon > --- INVENTORY -------- Particle Gun Advanced Assault Cannon Advanced Assault Cannon Improved Datajack Powered Hammer Powered Hammer Powered Hammer [Rating: 28] Favorites ----------- Power Light Ion Engine Engine Light Ion Engine Power Core Light Nuclear Core Propulsion Compact Wheel Leg Aluminum Leg Wheel Compact Wheel Hover Unit Hover Unit Utility Small Storage Unit Device Heat Sink Storage Small Storage Unit Processor Visual Processing Unit Hackware Hacking Suite Protection Hardened Light Armor Plating Weapon Assault Rifle Energy Gun Small Laser Ballistic Gun Assault Rifle Ballistic Cannon Advanced Assault Cannon Impact Weapon Flail Build | -11 -10 -9 -9 -8 -8 -8 ------- Run | Yrd Mat Mat Min Mat Gar Mat Slots Evolved 4 | . . 2 . 2 . . Power . | . . . . . . . Propulsion 1 | . . . . 1 . . Utility 3 | . . 2 . 1 . . Weapon . | . . . . . . . Parts Attached 38 | 6 1 4 8 10 6 3 Power 4 | 1 . 1 1 . 1 . Engine 3 | 1 . 1 1 . . . Core 1 | . . . . . 1 . Reactor . | . . . . . . . Propulsion 11 | 2 . 1 4 2 2 . Treads . | . . . . . . . Leg 2 | . . . . . 2 . Wheel 6 | 2 . 1 2 1 . . Hover 3 | . . . 2 1 . . Flight . | . . . . . . . Utility 11 | 1 1 2 1 4 1 1 Device 4 | . . 1 . 2 1 . Storage 1 | 1 . . . . . . Processor 3 | . 1 . . 1 . 1 Hackware 1 | . . 1 . . . . Protection 2 | . . . 1 1 . . Artifact . | . . . . . . . Weapon 12 | 2 . . 2 4 2 2 Energy Gun 1 | . . . 1 . . . Energy Cannon . | . . . . . . . Ballistic Gun 3 | 2 . . 1 . . . Ballistic Cannon 4 | . . . . . 2 2 Launcher . | . . . . . . . Special Weapon . | . . . . . . . Impact Weapon 4 | . . . . 4 . . Slashing Weapon . | . . . . . . . Piercing Weapon . | . . . . . . . Special Melee Weapon . | . . . . . . . Unidentified Prototypes . | . . . . . . . Corrupted Parts 1 | . . . . . 1 . System Corruption 5 | . . . . . 5 . Parts Lost 20 | . . 2 6 11 1 . Power 3 | . . 1 1 1 . . Propulsion 9 | . . 1 2 6 . . Utility 5 | . . . 1 3 1 . Weapon 3 | . . . 2 1 . . Highest Loss Streak 6 | . . 1 4 6 1 . To Critical Strikes . | . . . . . . . Average Backups 7 | 2 7 7 7 7 7 7 Power . | . 1 . 1 . . . Propulsion 1 | . 3 2 1 1 . . Utility . | . . 1 . 1 . . Weapon 3 | 1 1 2 2 3 6 6 Tool/Special . | . . . . . . . Unused Backups 17 | . 3 1 1 6 1 5 Power 1 | . . . . 1 . . Propulsion 3 | . 2 . 1 . . . Utility 2 | . 1 1 . . . . Weapon 9 | . . . . 4 1 4 Tool/Special 2 | . . . . 1 . 1 Average Slot Usage (%) 82 | . 89 84 96 75 60 86 Engine 7 | . 14 8 10 7 . . Leg 1 | . . . . . 6 16 Wheel 13 | . 28 22 18 10 . . Hover 1 | . . . . 4 . . Device 7 | . . 5 10 8 5 9 Storage 10 | . 14 11 11 9 9 9 Processor 6 | . 3 11 7 . 9 15 Hackware 8 | . . 5 11 9 9 9 Protection 3 | . . . 4 6 . . Energy Gun 1 | . . . 3 1 . . Ballistic Gun 11 | . 28 22 18 1 . . Ballistic Cannon 2 | . . . . . 8 18 Impact Weapon 5 | . . . . 14 9 . Peak Build Rating 28 | 6 9 13 14 23 25 28 Average Rating 14 | 4 6 10 12 18 20 26 On Entrance 12 | . 6 9 12 14 20 25 Naked Turns . | . . . . . . . Heaviest Build 35 | 12 12 13 24 35 23 23 Greatest Support 36 | 32 32 32 26 36 20 20 Greatest Overweight (x) 5 | . . . 2 3 5 1 Average Overweight (x) 1 | . . . . 1 2 1 Largest Inventory Capacity 8 | 8 8 8 8 8 8 8 Average Capacity 7 | 7 8 8 8 8 8 8 Most Carried 8 | 5 8 8 8 8 8 8 Average Carried 7 | 2 7 7 7 7 7 7 Final Capacity 8 | 8 8 8 8 8 8 8 Final Carried 8 | 5 8 7 8 8 8 6 Class Distribution -------------------- 65% | Scavenger-Mutant 34% | Mutant Dominant Class ---------------- Mutant | -10/Materials Mutant | -9/Materials Scavenger-Mutant | -9/Mines Scavenger-Mutant | -8/Materials Mutant | -8/Garrison Scavenger-Mutant | -8/Materials Resources | -11 -10 -9 -9 -8 -8 -8 ----------- Run | Yrd Mat Mat Min Mat Gar Mat Matter Collected 1230 | 332 68 83 342 220 185 . Remotely . | . . . . . . . Salvage Created 1826 | 150 104 115 576 648 233 . Parts 85 | 9 11 7 29 21 8 . Haulers Intercepted 1 | . . . . 1 . . Recyclers Shooed . | . . . . . . . Parts Field Recycled . | . . . . . . . Retrieved Matter . | . . . . . . . Parts Self-Destructed . | . . . . . . . Prevented . | . . . . . . . Kills | -11 -10 -9 -9 -8 -8 -8 ------- Run | Yrd Mat Mat Min Mat Gar Mat Combat Hostiles Destroyed 37 | . 3 2 13 11 8 . Melee 6 | . . . . 3 3 . Guns 22 | . 3 2 13 4 . . Cannons 3 | . . . . . 3 . Classes Destroyed 11 | 3 3 1 3 1 . . Worker 2 | 1 . . . 1 . . Tunneler 3 | 2 . . 1 . . . Hauler 1 | . . . . 1 . . Recycler 3 | 1 . . 1 1 . . Operator 1 | . 1 . . . . . Watcher 3 | . 2 . . 1 . . Swarmer 6 | . 3 . . . 3 . Grunt 24 | . . . 10 9 5 . Brawler 2 | . . . 1 1 . . Sentry 3 | . . 2 . 1 . . Assembled 2 | . . . 2 . . . Best Kill Streak 4 | 2 3 2 4 4 2 . Combat Bots Only 4 | . 2 2 4 4 2 . Max Kills in Single Turn 1 | 1 1 1 1 1 1 . Gunslinging . | . . . . . . . Exploded . | . . . . . . . Melee 1 | . . . . 1 1 . Uniques/NPCs Destroyed . | . . . . . . . Combat | -11 -10 -9 -9 -8 -8 -8 -------- Run | Yrd Mat Mat Min Mat Gar Mat Hostile Shots Fired 298 | . 9 12 66 108 95 8 Missed 80 | . 3 1 15 30 30 1 Hits 218 | . 6 11 51 78 65 7 Melee 11 | . . . 7 1 . 3 Projectile 207 | . 6 11 44 77 65 4 Critical Strikes 12 | . . . 1 6 3 2 Damage Taken 2972 | . 51 163 668 1216 714 160 Core 756 | . 10 32 141 213 309 51 Absorbed by Shields . | . . . . . . . Core Remaining (%) 84 | 100 96 . 56 . . . Volleys Fired 120 | 12 11 12 54 16 10 5 Largest 2 | 2 2 2 2 2 2 2 Hottest 80 | 40 40 40 60 60 80 80 Shots Fired 239 | 24 22 24 108 32 20 9 Gun 210 | 24 22 24 108 32 . . Cannon 29 | . . . . . 20 9 Launcher . | . . . . . . . Special . | . . . . . . . Kinetic 192 | 24 22 24 77 16 20 9 Thermal 47 | . . . 31 16 . . Explosive . | . . . . . . . Electromagnetic . | . . . . . . . Robot Hit Streak 16 | 5 2 8 9 16 3 2 Robot Miss Streak 4 | 2 3 3 3 1 3 4 Penetration Max . | . . . . . . . Secondary Targets 3 | . 1 . 2 . . . Max Gunslinging Chain 1 | . 1 . 1 . . . Shots Hit Robots 204 | 15 11 18 73 63 22 2 Core Hits 70 | 5 7 4 30 17 6 1 Critical Kills 1 | . . . . 1 . . Critical Parts Destroyed 8 | . . . 1 4 3 . Critical Strikes 9 | . . . 1 5 3 . Destroy 1 | . . . 1 . . . Smash 8 | . . . . 5 3 . Melee Attacks 77 | . . . . 51 26 . Impact 77 | . . . . 51 26 . Slashing . | . . . . . . . Piercing . | . . . . . . . Sneak Attacks 5 | . . . . 5 . . Combat Hostiles . | . . . . . . . Follow-up Attacks 12 | . . . . 8 4 . Damage Inflicted 3874 | 188 146 210 877 1538 863 52 Guns 1685 | 188 146 210 877 264 . . Cannons 288 | . . . . . 236 52 Explosions . | . . . . . . . Melee 1901 | . . . . 1274 627 . Ramming . | . . . . . . . Kinetic 1579 | 188 146 210 610 137 236 52 Thermal 394 | . . . 267 127 . . Explosive . | . . . . . . . Electromagnetic . | . . . . . . . Impact 1901 | . . . . 1274 627 . Slashing . | . . . . . . . Piercing . | . . . . . . . Highest Corruption 7 | . . . 7 . 5 5 Average Corruption 5 | . . . 5 . 5 5 Corruption Purged . | . . . . . . . Corruption Blocked . | . . . . . . . Effects 17 | . . . 11 . 5 1 Message Errors 7 | . . . 6 . 1 . Matter Fused 4 | . . . 3 . 1 . Heat Flow Errors 1 | . . . . . 1 . Parts Rejected 1 | . . . . . . 1 Data Loss (minor) 1 | . . . . . 1 . Data Loss (major) 1 | . . . . . 1 . Misfires 2 | . . . 2 . . . Overload Shots . | . . . . . . . Overflow Damage 519 | . . . . 292 227 . Projectiles 14 | . . . . . 14 . Explosions . | . . . . . . . Melee 505 | . . . . 292 213 . Knockbacks 19 | . . . . 7 9 3 Impact 10 | . . . . 6 4 . Kinetic 7 | . . . . . 5 2 Secondary 2 | . . . . 1 . 1 Self-Inflicted Damage . | . . . . . . . Shots . | . . . . . . . Rammed . | . . . . . . . Targets Rammed . | . . . . . . . Kicked . | . . . . . . . Crushed . | . . . . . . . Highest Temperature 158 | . . . 2 25 158 . Average Temperature 12 | . . . 1 8 31 . Received Heat Transfer 1418 | . . 54 320 756 252 36 Siege Activations . | . . . . . . . Martial Activations . | . . . . . . . Shielding Activations . | . . . . . . . Robots Disrupted . | . . . . . . . Combat Hostiles . | . . . . . . . Robots Corrupted 7 | . . . . 5 2 . Combat Hostiles 6 | . . . . 4 2 . Parts Fried 17 | . . . . 10 7 . Impact Corruptions 20 | . . . . 12 8 . Robots Melted . | . . . . . . . Combat Hostiles . | . . . . . . . Parts Melted 1 | . . . . 1 . . Heat Transferred 900 | . . . 600 300 . . Parts Sabotaged . | . . . . . . . Parts Stolen . | . . . . . . . Parts Stripped . | . . . . . . . Power Chain Reactions . | . . . . . . . Alert | -11 -10 -9 -9 -8 -8 -8 ------- Run | Yrd Mat Mat Min Mat Gar Mat Maximum Alert Level 1 | . . . . . 1 . Low Security (%) 90 | 100 100 100 100 100 48 100 Level 1 9 | . . . . . 51 . Level 2 . | . . . . . . . Level 3 . | . . . . . . . Level 4 . | . . . . . . . Level 5 . | . . . . . . . High Security . | . . . . . . . Max Security . | . . . . . . . Peak Influence 301 | 5 86 50 138 64 301 161 Initial 146 | . 3 1 . 44 11 146 Average 54 | 1 38 14 28 19 179 148 Influence Increases 1152 | 20 122 68 315 309 300 18 Destroy 0b10 Robot/C 700 | . 60 40 220 220 160 . Destroy 0b10 Robot/NC 65 | 20 15 . 10 20 . . Destroy Leader 108 | . 14 20 10 54 10 . Successful Hack 26 | . 18 8 . . . . Disable Machine 30 | . 15 . . . . 15 Anti-Garrison Action 50 | . . . . . 50 . Destroy Structure 8 | . . . . . 5 3 Lose Combat Pursuer 165 | . . . 75 15 75 . Influence Decreases 1018 | 15 122 73 200 407 16 185 Entered New Map 238 | . 2 4 . 71 6 155 Time Decay 642 | 15 120 59 140 278 . 30 Lost Part 138 | . . 10 60 58 10 . Squads Dispatched 6 | . 1 . . 4 . 1 Investigation 1 | . . . . 1 . . Extermination . | . . . . . . . Reinforcement 3 | . 1 . . 1 . 1 Assault . | . . . . . . . Garrison 2 | . . . . 2 . . Intercept . | . . . . . . . Searches Triggered . | . . . . . . . Construction Impeded . | . . . . . . . Haulers Reinforced . | . . . . . . . Active Scanning Responses . | . . . . . . . Cargo Convoy Interrupts . | . . . . . . . Stealth | -11 -10 -9 -9 -8 -8 -8 --------- Run | Yrd Mat Mat Min Mat Gar Mat Distress Signals 5 | . 2 . 1 2 . . Communications Jammed . | . . . . . . . Distress Signals . | . . . . . . . Times Spotted 59 | . 8 4 17 16 11 3 Peak Tracking Total 6 | . 4 3 5 4 6 2 Tactical Retreats 7 | . . . 3 1 3 . Traps | -11 -10 -9 -9 -8 -8 -8 ------- Run | Yrd Mat Mat Min Mat Gar Mat Traps Triggered 4 | . . . . 1 3 . Indirectly . | . . . . . . . Trap Hack Attempts . | . . . . . . . Triggered . | . . . . . . . Disarmed . | . . . . . . . Reprogrammed . | . . . . . . . Reused . | . . . . . . . Traps Extracted . | . . . . . . . Installed . | . . . . . . . Triggered . | . . . . . . . Machines | -11 -10 -9 -9 -8 -8 -8 ---------- Run | Yrd Mat Mat Min Mat Gar Mat Machines Disabled 3 | . 1 . . . 1 1 Max in Single Turn 1 | . 1 . . . 1 1 Garrison Relay 1 | . . . . . 1 . Machines Repaired . | . . . . . . . Machines Dismantled . | . . . . . . . Machines Sabotaged . | . . . . . . . Overloaded Fab Kills . | . . . . . . . Hacking | -11 -10 -9 -9 -8 -8 -8 --------- Run | Yrd Mat Mat Min Mat Gar Mat Machines Accessed 12 | . 2 5 1 3 . 1 Terminals 8 | . 2 4 . 1 . 1 Fabricators . | . . . . . . . Repair Stations . | . . . . . . . Recycling Units 2 | . . 1 . 1 . . Scanalyzers . | . . . . . . . Garrison Access 1 | . . . . 1 . . Total Hacks 23 | . 5 11 1 5 . 1 Successful 12 | . 3 6 1 2 . . Failed 11 | . 2 5 . 3 . 1 Catastrophic 1 | . 1 . . . . . Database Lockouts . | . . . . . . . Manual 16 | . 4 8 . 3 . 1 Terminals 17 | . 5 10 . 1 . 1 Fabricators . | . . . . . . . Repair Stations . | . . . . . . . Recycling Units 4 | . . 1 . 3 . . Scanalyzers . | . . . . . . . Garrison Access 1 | . . . . 1 . . Terminal Hacks 5 | . 1 3 1 . . . Part Schematic 1 | . . 1 . . . . Open Door 1 | . . . 1 . . . Branch Access Points 1 | . 1 . . . . . Alert Level 1 | . . 1 . . . . Locate Traps 1 | . . 1 . . . . Fabricator Hacks . | . . . . . . . Repair Station Hacks . | . . . . . . . Recycling Unit Hacks 1 | . . . . 1 . . Report Inventory 1 | . . . . 1 . . Scanalyzer . | . . . . . . . Garrison Access Hacks 1 | . . . . 1 . . Unlock Access 1 | . . . . 1 . . Unauthorized Hacks 5 | . 2 3 . . . . Terminals 4 | . 2 2 . . . . Botnet 4 | . 2 2 . . . . Fabricators . | . . . . . . . Repair Stations . | . . . . . . . Recycling Units 1 | . . 1 . . . . Monitor 1 | . . 1 . . . . Scanalyzers . | . . . . . . . Garrison Access . | . . . . . . . Data Cores Recovered . | . . . . . . . Used . | . . . . . . . Hacking Detections 8 | . 1 4 . 2 . 1 Full Trace Events . | . . . . . . . Feedback Events . | . . . . . . . Feedback Blocked . | . . . . . . . Robot Schematics Acquired . | . . . . . . . Robots Built . | . . . . . . . Authchips . | . . . . . . . Time . | . . . . . . . Total Robot Build Rating . | . . . . . . . Part Schematics Acquired 1 | . . 1 . . . . Parts Built . | . . . . . . . Authchips . | . . . . . . . Time . | . . . . . . . Total Part Build Rating . | . . . . . . . Parts Repaired . | . . . . . . . Time . | . . . . . . . Parts Recycled . | . . . . . . . Recycled Matter . | . . . . . . . Retrieved Matter . | . . . . . . . Retrieved Components . | . . . . . . . Parts Scanalyzed . | . . . . . . . Part Schematics Acquired . | . . . . . . . Parts Damaged . | . . . . . . . Bothacking | -11 -10 -9 -9 -8 -8 -8 ------------ Run | Yrd Mat Mat Min Mat Gar Mat Used RIF Installer . | . . . . . . . Robots Hacked . | . . . . . . . Non-combat . | . . . . . . . Combat . | . . . . . . . Robot Hacks Applied . | . . . . . . . Relay Couplers Released 4 | . . . . . 4 . Machine Destruction 4 | . . . . . 4 . Fabnet Peak Effective % . | . . . . . . . Robots Rewired . | . . . . . . . Allies Hacked . | . . . . . . . Hacks Repelled . | . . . . . . . Allies | -11 -10 -9 -9 -8 -8 -8 -------- Run | Yrd Mat Mat Min Mat Gar Mat Total Allies . | . . . . . . . Largest Group . | . . . . . . . Highest-Rated Group . | . . . . . . . Highest-Rated Ally . | . . . . . . . Initial Warlord ECA Mod 1 | . . . . . . 1 Total Orders . | . . . . . . . Ally Attacks . | . . . . . . . Total Damage . | . . . . . . . Kills . | . . . . . . . Allies Corrupted . | . . . . . . . Allies Melted . | . . . . . . . Intel | -11 -10 -9 -9 -8 -8 -8 ------- Run | Yrd Mat Mat Min Mat Gar Mat Active Infowar (turns) 1725 | . 69 218 899 539 . . Optics 1186 | . 69 218 899 . . . Terrain 539 | . . . . 539 . . Robot Analysis Total . | . . . . . . . Derelict Logs Recovered 1 | . . . 1 . . . Drone Launches . | . . . . . . . Drone Recoveries . | . . . . . . . Exploration | -11 -10 -9 -9 -8 -8 -8 ------------- Run | Yrd Mat Mat Min Mat Gar Mat Turns Passed 3399 | 131 248 218 1341 782 619 60 Spaces Moved 1482 | 83 205 165 332 442 235 20 Core 166 | 9 . . . 40 117 . Treads . | . . . . . . . Legs 138 | . . . . . 118 20 Wheels 1118 | 74 205 165 311 363 . . Hover 60 | . . . 21 39 . . Flight . | . . . . . . . Fastest Speed 50 | 50 100 90 90 80 190 190 Average Speed 120 | 94 100 97 95 116 202 190 Slowest Speed 300 | 100 100 100 116 200 300 190 Overloaded Moves . | . . . . . . . Propulsion Burnouts . | . . . . . . . Robots Hopped . | . . . . . . . Potential Cave-ins . | . . . . . . . Cave-ins Triggered . | . . . . . . . Exploration Rate (%) 28 | 5 32 24 67 45 25 2 Regions Visited 6 Branch Regions 1 Pre-discovered Areas . | . . . . . . . Known Exits Taken 1 | . . . . 1 . . Unknown Exits Taken 4 | 1 1 1 1 . . . Scrap Searched 1 | . . . 1 . . . Spaces Dug . | . . . . . . . Terrain Destroyed 4 | . . . . . . 4 Melee . | . . . . . . . Projectile 4 | . . . . . . 4 AOE . | . . . . . . . Terrain Rammed . | . . . . . . . Walls Destroyed . | . . . . . . . Machines Disabled . | . . . . . . . Actions | -11 -10 -9 -9 -8 -8 -8 --------- Run | Yrd Mat Mat Min Mat Gar Mat Total 2756 | 111 227 198 1252 609 324 35 Wait 918 | . 1 13 842 51 7 4 Move 1476 | 82 204 164 331 441 234 20 Hop . | . . . . . . . Pick Up 68 | 11 7 4 11 25 8 2 Fast Attach . | . . . . . . . Attach 37 | 6 1 4 7 12 4 3 Detach 1 | . . . 1 . . . Swap 10 | . . . 2 6 2 . Drop 30 | . 3 1 4 17 4 1 Fire 120 | 12 11 12 54 16 10 5 Melee 61 | . . . . 41 20 . Ram . | . . . . . . . Kick . | . . . . . . . Crush . | . . . . . . . Escape Stasis 35 | . . . . . 35 . Rewire . | . . . . . . . Trap . | . . . . . . . Miscellaneous . | . . . . . . . Route ------- -11/Scrapyard -10/Materials (discovered 2 exits: *Mat / Min) -9/Materials -9/Mines -8/Materials -8/Garrison -8/Materials History --------- Turn | Location | Event 6 | -11/Scrapyard | Discovered new exit (range 15) 132 | -11/Scrapyard | Entered Materials 216 | -10/Materials | Identified exit to Mines 304 | -10/Materials | Build established: Mutant 351 | -10/Materials | Discovered new exit (range 13) 380 | -10/Materials | Entered another Materials area 380 | -9/Materials | Evolved 2 slots: Utility x2 591 | -9/Materials | Discovered new exit (range 9) 598 | -9/Materials | Entered Mines 621 | -9/Mines | Excavation squad dispatched 621 | -9/Mines | A large section of the Mines collapsed 864 | -9/Mines | Build established: Scavenger-Mutant 871 | -9/Mines | Excavation squad dispatched 1121 | -9/Mines | Excavation squad dispatched 1371 | -9/Mines | Excavation squad dispatched 1531 | -9/Mines | Lost 4 parts (1n1u2w) 1621 | -9/Mines | Excavation squad dispatched 1684 | -9/Mines | Learned Materials security intel 1871 | -9/Mines | Excavation squad dispatched 1882 | -9/Mines | Found the Drone Emporium 1933 | -9/Mines | Discovered new exit (range 8) 1939 | -9/Mines | Entered Materials 1939 | -8/Materials | Evolved 2 slots: Propulsion x1, Utility x1 2570 | -8/Materials | Garrison activated, responded to threat 2659 | -8/Materials | Lost 6 parts (1p2n2u1w) 2713 | -8/Materials | Identified exit to Garrison 2721 | -8/Materials | Entered Garrison 2797 | -8/Garrison | Triggered checkpoint 2816 | -8/Garrison | Core integrity fell below 50% 2856 | -8/Garrison | Garrison Relay disabled 2905 | -8/Garrison | Build established: Mutant 3028 | -8/Garrison | Core integrity fell below 20% 3264 | -8/Garrison | Discovered new exit (range 10) 3340 | -8/Garrison | Entered Materials 3377 | -8/Materials | Build established: Scavenger-Mutant 3400 | -8/Materials | Destroyed by L-31 Rogue with Katana Last Messages --------------- 03264_ EXIT=FOUND 03274_ System corrupted: Component data lost. 03315_ :HBUPOK9JJSGA4Z AYIB4 LOCATION=UNKNOWN GOAL=ESCAPE 03342_ O-16 Technician: "IFF HANDSHAKE FAILED. SECURING TERMINAL." 03350_ Connecting with Terminal... 03350_ Current location identified: Materials 03350_ Terminal disabled. 03355_ Dropped Hvy. Flail. 03355_ Acquired Adv. Targeting Computer. 03359_ Acquired Hvy. Flail. 03379_ ALERT: Hostiles spotted, dispatching reinforcements to Terminal M002. 03388_ System corrupted: Adv. Assault Cannon rejected. 03390_ L-31 Rogue knocked back. 03395_ Adv. Assault Cannon severed. 03397_ Aluminum Leg severed. Map ----- +----------------------------------------------------+ | ?????????????????????????????????????? | | ?????????????????????????????????????? | | ?????????????????????????????????????? | | ?????????????????????????????????????? | | ?????????????????????????????????????? | | ?????????????????????????????????????? | | ?????????????????????????????????????? | | ?????????????????????????????????????? | | ?????????????????????????????????????? | | ?????????????????????????????????????? | | ?????????????????????????????????????? | | ???? ??????????????????????????????? | | ???# ??????????????????????????????? | | ???# ??????????????????????????????? | | ???# ??????????????????????????????? | | ???# ??????????????????????????????? | | ???# #?????????????????????????????? | | ???# ?????????????????????????????? | | ???# ?????????????????????????????? | | ???# ?????????????????????????????? | | ???# #?????????????????????????????? | | ???# #?????????????????????????????? | | ???# #?###?????????????????????????? | | ???# ###;;######???????????????????? | | ???# # g [#???????????????????? | | ???# # % l@! #???????????????????? | | ???# # " " ] #???????????????????? | | ???# + ""% #???????????????????? | | ???# ###;#######???????????????????? | | ???# ## #??????????????????????????? | | ???# ###???????????????????????????? | | ???#####?????????????????????????????? | | ?????????????????????????????????????? | | ?????????????????????????????????????? | | ?????????????????????????????????????? | | ?????????????????????????????????????? | | ?????????????????????????????????????? | | ?????????????????????????????????????? | | ?????????????????????????????????????? | | ?????????????????????????????????????? | | ?????????????????????????????????????? | | ?????????????????????????????????????? | | ?????????????????????????????????????? | | ?????????????????????????????????????? | | ?????????????????????????????????????? | | ?????????????????????????????????????? | | ?????????????????????????????????????? | | | | | | | +----------------------------------------------------+ Best States ------------- Heat Dissipation 45 Energy Generation 14 Energy Capacity 265 Matter Stores 300 Matter Capacity 300 Sight Range 18 Terrain Scan Range 16 Terrain Scan Density 10 Armor Coverage 600 Evasion (%) 45 Targeting Accuracy 8 Target Analysis 5 Offensive Hacking 10 Item Schematics ----------------- Imp. Hover Unit | -9/Materials | Hacked Robot Schematics ------------------ None Fabricated ------------ Nothing Repaired ---------- Nothing Alien Tech Used ----------------- None Achievements -------------- None Challenges ------------ None Game ------ Seed CoreScatterStorage Manual? 0 Play Time 00:29:12 Cumulative 54.0 hours Start 2025.08.11 @ 11:14:47 End 2025.08.11 @ 11:43:10 Sessions 1 Manual Loads 0 Difficulty Rogue Special Mode None Game No. 34 Rogue 30 Adventurer 4 Explorer 0 Win Type - Total 0 Types 0/0/0/0/0/0/0/0/0/0 Lore% 39 Gallery% 36 Achievement% 31 Wizard Run 0 Options --------- Layout 1 ASCII 0 Keyboard 0 Movement Numpad Keybinds 1 Fullscreen 1 Font 24/Smallcaps Map View 50x35 Zoom Use 0% Tactical HUD 1 Map Filters NONE Filters NONE Steam 1 RUN: 336bb95e-b95d-4405-b891-e89a317822a2